fUST/lending_fUST_20241225
["ID","MTS","AMOUNT","RATE_DAILY","PERIOD"]
[346583106,1735114249440,-151.0,0.00010959,2]
[346583107,1735114249448,-151.0,0.00010959,2]
[346583108,1735114249457,-151.0,0.00010959,2]
[346583109,1735114249466,-151.0,0.00010959,2]
[346583110,1735114249476,-151.0,0.00010959,2]
[346583111,1735114249484,-410.761462,0.00010959,2]
[346583112,1735114249494,-410.761462,0.00010959,2]
[346583113,1735114249503,-151.0,0.00010959,2]
[346583114,1735114249513,-151.0,0.00010959,2]
[346583115,1735114249522,-151.0,0.00010959,2]
[346583116,1735114249531,-151.0,0.00010959,2]
[346583117,1735114249540,-391.027377,0.00010959,2]
[346583118,1735114249549,-391.027377,0.00010959,2]
[346583119,1735114249558,-391.027377,0.00010959,2]
[346583120,1735114249567,-391.027377,0.00010959,2]
[346583121,1735114249577,-151.0,0.00010959,2]
[346583122,1735114249585,-151.0,0.00010959,2]
[346583123,1735114249594,-153.464715,0.00010959,2]
[346583124,1735114249603,-155.193608,0.00010959,2]
[346583125,1735114249612,-155.193608,0.00010959,2]
[346583126,1735114249621,-155.193608,0.00010959,2]
[346583127,1735114249630,-151.0,0.00010959,2]
[346583128,1735114249639,-151.0,0.00010959,2]
[346583129,1735114249648,-161.508023,0.00010959,2]
[346583130,1735114249657,-155.193608,0.00010959,2]
[346583131,1735114249668,-155.193608,0.00010959,2]
[346583132,1735114249677,-155.193608,0.00010959,2]
[346583133,1735114249686,-636.97004,0.00010959,2]
[346583134,1735114249695,-636.97004,0.00010959,2]
[346583135,1735114249704,-636.97004,0.00010959,2]
[346583136,1735114249713,-636.97004,0.00010959,2]
[346583137,1735114249722,-636.97004,0.00010959,2]
[346583138,1735114249731,-636.97004,0.00010959,2]
[346583139,1735114249740,-151.0,0.00010959,2]
[346583140,1735114249749,-151.0,0.00010959,2]
[346583141,1735114249758,-151.0,0.00010959,2]
[346583143,1735114249767,-151.0,0.00010959,2]
[346583145,1735114249776,-151.0,0.00010959,2]
[346583147,1735114249785,-151.0,0.00010959,2]
[346583148,1735114249794,-151.0,0.00010959,2]
[346583149,1735114249803,-151.0,0.00010959,2]
[346583150,1735114249812,-151.0,0.00010959,2]
[346583152,1735114249822,-151.0,0.00010959,2]
[346583154,1735114249831,-151.0,0.00010959,2]
[346583156,1735114249840,-151.0,0.00010959,2]
[346583158,1735114249849,-151.0,0.00010959,2]
[346583159,1735114249858,-151.0,0.00010959,2]
[346583160,1735114249867,-151.0,0.00010959,2]
[346583161,1735114249876,-151.0,0.00010959,2]
[346583162,1735114249886,-151.0,0.00010959,2]
[346583163,1735114249895,-151.0,0.00010959,2]
[346583164,1735114249905,-151.0,0.00010959,2]
[346583165,1735114249915,-151.0,0.00010959,2]
[346583166,1735114249925,-233.723434,0.00010959,2]
[346583167,1735114249935,-151.0,0.00010959,2]
[346583168,1735114249946,-151.0,0.00010959,2]
[346583169,1735114249956,-151.0,0.00010959,2]
[346583170,1735114249966,-151.0,0.00010959,2]
[346583171,1735114249976,-151.0,0.00010959,2]
[346583172,1735114249985,-151.0,0.00010959,2]
[346583173,1735114249995,-213.145238,0.00010959,2]
[346583174,1735114250004,-213.145238,0.00010959,2]
[346583175,1735114250014,-213.145238,0.00010959,2]
[346583176,1735114250024,-213.145238,0.00010959,2]
[346583177,1735114250034,-213.145238,0.00010959,2]
[346583178,1735114250043,-213.145238,0.00010959,2]
[346583179,1735114250052,-218.212726,0.00010959,2]
[346583180,1735114250062,-218.212726,0.00010959,2]
[346583181,1735114250071,-218.212726,0.00010959,2]
[346583182,1735114250080,-218.212726,0.00010959,2]
[346583183,1735114250090,-218.212726,0.00010959,2]
[346583184,1735114250099,-218.212726,0.00010959,2]
[346583185,1735114250110,-218.212726,0.00010959,2]
[346583186,1735114250119,-218.212726,0.00010959,2]
[346583187,1735114250129,-152.556292,0.00010959,2]
[346583188,1735114250138,-151.0,0.00010959,2]
[346583189,1735114250147,-151.0,0.00010959,2]
[346583190,1735114250158,-151.0,0.00010959,2]
[346583191,1735114250168,-151.0,0.00010959,2]
[346583192,1735114250178,-151.0,0.00010959,2]
[346583193,1735114250188,-218.212726,0.00010959,2]
[346583194,1735114250197,-218.212726,0.00010959,2]
[346583195,1735114250207,-500.0,0.00010973,2]
[346583196,1735114250216,-500.0,0.00010973,2]
[346583197,1735114250226,-500.36134767,0.00010973,2]
[346583198,1735114250235,-251.03649654,0.00010973,2]
[346583199,1735114250245,-500.0,0.00010973,2]
[346583200,1735114250254,-350.1696321,0.0001099,2]
[346583201,1735114250263,-718.82,0.00011046,2]
[346583202,1735114250272,-350.1696321,0.00011059,2]
[346583203,1735114250282,-736.00835086,0.00011059,2]
[346583204,1735114250291,-151.960608,0.00011059,2]
[346583205,1735114250300,-588.563,0.0001113,2]
[346583206,1735114250309,-284.63776113,0.000112,2]
[346583207,1735114250318,-352.2050668,0.000112,2]
[346583208,1735114250327,-500.0,0.00011225,2]
[346583209,1735114250336,-500.0,0.00011225,2]
[346583210,1735114250345,-500.0,0.00011225,2]
[346583211,1735114250355,-1407.58,0.00011225,2]
[346583212,1735114250365,-500.0,0.00011225,2]
[346583213,1735114250374,-500.0,0.00011225,2]
[346583214,1735114250383,-500.0,0.00011225,2]
[346583215,1735114250393,-893.49,0.00011225,2]
[346583216,1735114250402,-500.0,0.00011226,2]
[346583217,1735114250413,-500.0,0.00011226,2]
[346583218,1735114250422,-500.0,0.00011226,2]
[346583219,1735114250431,-500.0,0.00011226,2]
[346583220,1735114250441,-500.0,0.00011226,2]
[346583221,1735114250450,-718.82,0.00011226,2]
[346583222,1735114250459,-500.0,0.00011226,2]
[346583223,1735114250470,-8652.18,0.00011226,2]
[346583224,1735114250480,-500.0,0.00011226,2]
[346583225,1735114250490,-3266.33,0.00011226,2]
[346583226,1735114250499,-500.0,0.00011226,2]
[346583227,1735114250508,-500.0,0.00011226,2]
[346583228,1735114250517,-2597.24,0.00011226,2]
[346583229,1735114250526,-500.0,0.00011226,2]
[346583230,1735114250535,-500.0,0.00011226,2]
[346583231,1735114250545,-500.0,0.00011226,2]
[346583232,1735114250554,-1498.99,0.00011226,2]
[346583233,1735114250564,-500.0,0.00011226,2]
[346583234,1735114250575,-1287.27,0.00011226,2]
[346583235,1735114250584,-759.15,0.00011226,2]
[346583236,1735114250594,-500.0,0.00011226,2]
[346583238,1735114250604,-500.0,0.00011226,2]
[346583239,1735114250614,-822.74,0.00011226,2]
[346583240,1735114250623,-552.19,0.00011226,2]
[346583241,1735114250632,-500.0,0.00011226,2]
[346583242,1735114250641,-500.0,0.00011226,2]
[346583243,1735114250651,-409.42591532,0.00011227,2]
[346583244,1735114250662,-501.62696368,0.00011227,2]
[346583245,1735114250672,-500.0,0.00011227,2]
[346583246,1735114250682,-500.0,0.00011227,2]
[346583247,1735114250691,-502.09270692,0.00011227,2]
[346583248,1735114250700,-500.0,0.00011227,2]
[346583249,1735114250710,-500.0,0.00011227,2]
[346583250,1735114250719,-501.96367711,0.00011227,2]
[346583251,1735114250728,-503.95623832,0.00011227,2]
[346583252,1735114250737,-500.0,0.00011227,2]
[346583253,1735114250746,-506.76156882,0.00011227,2]
[346583254,1735114250755,-501.6016208,0.00011227,2]
[346583255,1735114250764,-548.54,0.00011227,2]
[346583256,1735114250773,-502.13062488,0.00011227,2]
[346583257,1735114250782,-503.95649468,0.00011227,2]
[346583258,1735114250792,-503.44842212,0.00011227,2]
[346583259,1735114250801,-500.0,0.00011227,2]
[346583260,1735114250810,-501.71904092,0.00011227,2]
[346583261,1735114250819,-500.0,0.00011227,2]
[346583263,1735114250828,-500.0,0.00011227,2]
[346583264,1735114250836,-504.42272528,0.00011227,2]
[346583266,1735114250845,-562.95100695,0.00011227,2]
[346583268,1735114250854,-502.4558398,0.00011227,2]
[346583269,1735114250863,-503.21545384,0.00011227,2]
[346583271,1735114250872,-500.0,0.00011227,2]
[346583272,1735114250882,-502.06369424,0.00011227,2]
[346583274,1735114250891,-600.18000304,0.00011227,2]
[346583276,1735114250900,-500.0,0.00011227,2]
[346583277,1735114250913,-500.0,0.00011227,2]
[346583279,1735114250923,-502.84700134,0.00011227,2]
[346583281,1735114250932,-503.07474765,0.00011227,2]
[346583282,1735114250941,-500.0,0.00011227,2]
[346583284,1735114250950,-500.0,0.00011227,2]
[346583285,1735114250959,-504.34988501,0.00011227,2]
[346583286,1735114250968,-501.47704821,0.00011227,2]
[346583287,1735114250977,-504.58685673,0.00011227,2]
[346583288,1735114250986,-506.96709423,0.00011227,2]
[346583289,1735114250995,-500.67016633,0.00011227,2]
[346583290,1735114251005,-500.0,0.00011227,2]
[346583291,1735114251015,-215.39835861,0.00011227,2]
[346583292,1735114251025,-504.09182178,0.00011227,2]
[346583293,1735114251035,-505.44858851,0.00011227,2]
[346583294,1735114251044,-502.15492504,0.00011227,2]
[346583295,1735114251053,-500.0,0.00011227,2]
[346583296,1735114251062,-500.0,0.00011227,2]
[346583297,1735114251071,-503.40037366,0.00011227,2]
[346583298,1735114251081,-501.90485537,0.00011227,2]
[346583299,1735114251090,-503.77903312,0.00011227,2]
[346583300,1735114251099,-618.9,0.00011227,2]
[346583301,1735114251108,-505.85208897,0.00011227,2]
[346583302,1735114251124,-502.10865371,0.00011227,2]
[346583303,1735114251134,-500.0,0.00011227,2]
[346583304,1735114251143,-632.99883994,0.00011227,2]
[346583305,1735114251152,-500.0,0.00011227,2]
[346583306,1735114251165,-500.0,0.00011227,2]
[346583307,1735114251175,-500.0,0.00011227,2]
[346583308,1735114251184,-500.0,0.00011227,2]
[346583309,1735114251192,-365.07732351,0.00011227,2]
[346583310,1735114251201,-500.0,0.00011227,2]
[346583311,1735114251211,-502.6799193,0.00011227,2]
[346583312,1735114251220,-500.0,0.00011227,2]
[346583313,1735114251230,-151.0,0.00011227,2]
[346583314,1735114251239,-151.0,0.00011227,2]
[346583315,1735114251249,-502.27141946,0.00011227,2]
[346583316,1735114251258,-151.0,0.00011227,2]
[346583317,1735114251267,-505.77369735,0.00011227,2]
[346583318,1735114251276,-498.40616086,0.00011227,2]
[346583319,1735114251285,-502.79475437,0.00011227,2]
[346583320,1735114251294,-500.0,0.00011227,2]
[346583321,1735114251303,-502.24112919,0.00011227,2]
[346583322,1735114251313,-1124.02,0.00011227,2]
[346583323,1735114251322,-500.0,0.00011227,2]
[346583324,1735114251331,-500.0,0.00011227,2]
[346583325,1735114251340,-151.0,0.00011227,2]
[346583326,1735114251349,-500.0,0.00011227,2]
[346583327,1735114251358,-500.0,0.00011227,2]
[346583328,1735114251469,-410.761462,0.00011227,2]
[346583329,1735114251478,-410.761462,0.00011227,2]
[346583330,1735114251488,-502.63721505,0.00011227,2]
[346583331,1735114251498,-502.67590396,0.00011227,2]
[346583332,1735114251507,-500.0,0.00011227,2]
[346583333,1735114251516,-557.91227516,0.00011227,2]
[346583334,1735114251526,-502.04045473,0.00011227,2]
[346583335,1735114251535,-500.0,0.00011227,2]
[346583336,1735114251544,-500.0,0.00011227,2]
[346583337,1735114251553,-500.0,0.00011227,2]
[346583338,1735114251563,-500.0,0.00011227,2]
[346583339,1735114251572,-500.0,0.00011227,2]
[346583340,1735114251582,-500.0,0.00011227,2]
[346583341,1735114251591,-794.49,0.00011227,2]
[346583342,1735114251600,-503.45301184,0.00011227,2]
[346583343,1735114251609,-500.0,0.00011227,2]
[346583344,1735114251619,-500.0,0.00011227,2]
[346583345,1735114251628,-500.0,0.00011227,2]
[346583346,1735114251638,-501.73,0.00011227,2]
[346583347,1735114251647,-500.0,0.00011227,2]
[346583348,1735114251657,-168.0,0.00011227,2]
[346583349,1735114251668,-501.83842667,0.00011227,2]
[346583350,1735114251678,-504.40141099,0.00011227,2]
[346583351,1735114251687,-500.0,0.00011227,2]
[346583352,1735114251696,-500.0,0.00011227,2]
[346583353,1735114251705,-151.0,0.00011227,2]
[346583354,1735114251715,-500.0,0.00011227,2]
[346583355,1735114251724,-483.76016164,0.00011227,2]
[346583356,1735114251733,-502.07393106,0.00011227,2]
[346583357,1735114251742,-151.0,0.00011227,2]
[346583358,1735114251751,-502.43764936,0.00011227,2]
[346583359,1735114251761,-501.29592126,0.00011227,2]
[346583360,1735114251771,-500.0,0.00011227,2]
[346583361,1735114251781,-391.027377,0.00011227,2]
[346583362,1735114251790,-501.7123401,0.00011227,2]
[346583363,1735114251799,-502.86452252,0.00011227,2]
[346583364,1735114251808,-391.027377,0.00011227,2]
[346583365,1735114251817,-501.8991332,0.00011227,2]
[346583366,1735114251826,-503.09686939,0.00011227,2]
[346583367,1735114251835,-500.0,0.00011227,2]
[346583368,1735114251844,-500.0,0.00011227,2]
[346583369,1735114251853,-500.0,0.00011227,2]
[346583370,1735114251862,-510.01524881,0.00011227,2]
[346583371,1735114251871,-237.60436465,0.00011227,2]
[346583372,1735114251880,-500.0,0.00011227,2]
[346583373,1735114251889,-500.0,0.00011227,2]
[346583374,1735114251899,-151.0,0.00011227,2]
[346583375,1735114251908,-491.16288801,0.00011227,2]
[346583376,1735114251918,-245.38611398,0.00011227,2]
[346583377,1735114251927,-503.58616805,0.00011227,2]
[346583378,1735114251936,-500.0,0.00011227,2]
[346583379,1735114251946,-500.0,0.00011227,2]
[346583380,1735114251955,-500.0,0.00011227,2]
[346583381,1735114251964,-500.0,0.00011227,2]
[346583382,1735114251973,-551.51,0.00011227,2]
[346583383,1735114251983,-500.0,0.00011227,2]
[346583384,1735114251992,-500.0,0.00011227,2]
[346583385,1735114252001,-503.7441256,0.00011227,2]
[346583386,1735114252010,-500.0,0.00011227,2]
[346583387,1735114252020,-155.193608,0.00011227,2]
[346583388,1735114252030,-500.0,0.00011227,2]
[346583389,1735114252039,-155.193608,0.00011227,2]
[346583390,1735114252048,-500.0,0.00011227,2]
[346583391,1735114252058,-500.0,0.00011227,2]
[346583392,1735114252068,-504.72782587,0.00011227,2]
[346583393,1735114252077,-1113.08,0.00011227,2]
[346583394,1735114252086,-264.18176743,0.00011227,2]
[346583395,1735114252095,-500.0,0.00011227,2]
[346583396,1735114252104,-636.97004,0.00011227,2]
[346583397,1735114252114,-636.97004,0.00011227,2]
[346583398,1735114252125,-151.0,0.00011227,2]
[346583399,1735114252135,-500.0,0.00011227,2]
[346583400,1735114252144,-500.6083551,0.00011227,2]
[346583401,1735114252153,-2032.68,0.00011227,2]
[346583402,1735114252166,-853.08,0.00011227,2]
[346583403,1735114252175,-151.0,0.00011227,2]
[346583404,1735114252184,-500.0,0.00011227,2]
[346583405,1735114252195,-778.87296,0.00011227,2]
[346583406,1735114252204,-501.91012891,0.00011227,2]
[346583407,1735114252213,-778.87296,0.00011227,2]
[346583408,1735114252223,-718.82,0.00011227,2]
[346583409,1735114252233,-464.79531377,0.00011227,2]
[346583410,1735114252242,-718.82,0.00011227,2]
[346583411,1735114252252,-718.82,0.00011227,2]
[346583412,1735114252262,-718.82,0.00011227,2]
[346583413,1735114252271,-718.82,0.00011227,2]
[346583414,1735114252281,-718.84,0.00011227,2]
[346583415,1735114252291,-500.0,0.00011227,2]
[346583416,1735114252300,-502.33333077,0.00011227,2]
[346583417,1735114252309,-500.0,0.00011227,2]
[346583418,1735114252318,-500.0,0.00011227,2]
[346583419,1735114252328,-604.2,0.00011227,2]
[346583420,1735114252337,-578.83,0.00011227,2]
[346583421,1735114252346,-151.0,0.00011227,2]
[346583422,1735114252357,-151.0,0.00011227,2]
[346583423,1735114252366,-500.0,0.00011227,2]
[346583424,1735114252375,-500.0,0.00011227,2]
[346583425,1735114252384,-500.0,0.00011227,2]
[346583426,1735114252394,-500.0,0.00011227,2]
[346583427,1735114252403,-819.96,0.00011227,2]
[346583428,1735114252413,-500.0,0.00011227,4]
[346583429,1735114252422,-500.0,0.00011227,2]
[346583430,1735114252431,-151.0,0.00011227,2]
[346583431,1735114252440,-151.0,0.00011227,2]
[346583432,1735114252450,-1205.03,0.00011227,2]
[346583433,1735114252460,-151.0,0.00011227,2]
[346583434,1735114252469,-544.0,0.00011227,2]
[346583435,1735114252478,-151.0,0.00011227,2]
[346583436,1735114252489,-500.0,0.00011227,2]
[346583437,1735114252504,-562.61,0.00011227,2]
[346583438,1735114252519,-500.0,0.00011227,2]
[346583439,1735114252532,-8844.65,0.00011227,2]
[346583440,1735114252545,-8844.65,0.00011227,2]
[346583441,1735114252559,-1763.4,0.00011227,2]
[346583442,1735114252573,-500.0,0.00011227,2]
[346583443,1735114252587,-1536.22,0.00011227,2]
[346583444,1735114252600,-500.0,0.00011227,2]
[346583445,1735114252615,-493.72188596,0.00011227,2]
[346583446,1735114252629,-500.0,0.00011227,2]
[346583447,1735114252642,-502.53376424,0.00011227,2]
[346583448,1735114252655,-151.0,0.00011227,2]
[346583449,1735114252670,-505.32981907,0.00011227,2]
[346583450,1735114252684,-1257.99,0.00011227,2]
[346583451,1735114252697,-502.2100743,0.00011227,2]
[346583452,1735114252709,-151.0,0.00011227,2]
[346583453,1735114252721,-503.45643319,0.00011227,2]
[346583454,1735114252733,-503.01522744,0.00011227,2]
[346583455,1735114252747,-526.03,0.00011227,2]
[346583456,1735114252760,-213.145238,0.00011227,2]
[346583457,1735114252774,-502.62552808,0.00011227,2]
[346583458,1735114252787,-213.145238,0.00011227,2]
[346583459,1735114252802,-500.0,0.00011227,2]
[346583460,1735114252814,-500.0,0.00011227,2]
[346583461,1735114252825,-213.145238,0.00011227,2]
[346583462,1735114252836,-213.145238,0.00011227,2]
[346583463,1735114252849,-500.0,0.00011227,2]
[346583464,1735114252864,-500.0,0.00011227,2]
[346583465,1735114252876,-500.0,0.00011227,2]
[346583466,1735114252888,-500.0,0.00011227,2]
[346583467,1735114252899,-500.0,0.00011227,2]
[346583468,1735114252912,-500.0,0.00011227,2]
[346583469,1735114252924,-218.212726,0.00011227,2]
[346583470,1735114252935,-218.212726,0.00011227,2]
[346583471,1735114252947,-571.86378003,0.00011227,2]
[346583472,1735114252959,-500.0,0.00011227,2]
[346583473,1735114252970,-218.212726,0.00011227,2]
[346583474,1735114252982,-500.0,0.00011227,2]
[346583475,1735114252994,-218.212726,0.00011227,2]
[346583476,1735114253005,-205.88,0.00011227,2]
[346583477,1735114253017,-555.91,0.00011227,2]
[346583478,1735114253030,-611.42,0.00011227,2]
[346583479,1735114253041,-500.0,0.00011227,2]
[346583480,1735114253053,-634.78,0.00011227,2]
[346583481,1735114253065,-164.09686466,0.00011227,2]
[346583482,1735114253076,-500.0,0.00011227,2]
[346583483,1735114253088,-501.60497127,0.00011227,2]
[346583484,1735114253100,-813.97,0.00011227,2]
[346583485,1735114253112,-500.0,0.00011227,2]
[346583486,1735114253123,-500.0,0.00011227,2]
[346583487,1735114253135,-500.0,0.00011227,2]
[346583488,1735114253147,-185.71507622,0.00011227,2]
[346583489,1735114253159,-500.0,0.00011227,2]
[346583490,1735114253170,-500.0,0.00011227,2]
[346583491,1735114253181,-970.83,0.00011227,2]
[346583492,1735114253193,-151.0,0.00011228,2]
[346583493,1735114253205,-151.0,0.00011228,2]
[346583494,1735114253216,-151.0,0.00011228,2]
[346583495,1735114253228,-151.0,0.00011228,2]
[346583496,1735114253239,-151.0,0.00011228,2]
[346583497,1735114253251,-151.0,0.00011228,2]
[346583498,1735114253264,-151.0,0.00011228,2]
[346583499,1735114253275,-151.0,0.00011228,2]
[346583500,1735114253287,-277.762112,0.00011228,2]
[346583501,1735114253299,-277.762112,0.00011228,2]
[346583502,1735114253310,-169.405968,0.00011228,2]
[346583503,1735114253322,-156.823169,0.00011228,2]
[346583504,1735114253333,-447.035386,0.00011228,2]
[346583505,1735114253344,-447.035386,0.00011228,2]
[346583506,1735114253355,-151.0,0.00011228,2]
[346583507,1735114253366,-156.280756,0.00011228,2]
[346583508,1735114253377,-151.0,0.00011228,2]
[346583509,1735114253389,-151.0,0.00011228,2]
[346583510,1735114253401,-151.0,0.00011228,2]
[346583511,1735114253413,-410.761462,0.00011228,2]
[346583512,1735114253425,-410.761462,0.00011228,2]
[346583513,1735114253437,-155.478127,0.00011228,2]
[346583514,1735114253448,-151.0,0.00011228,2]
[346583515,1735114253460,-391.027377,0.00011228,2]
[346583516,1735114253471,-391.027377,0.00011228,2]
[346583517,1735114253483,-151.0,0.00011228,2]
[346583518,1735114253495,-696.01,0.00011228,2]
[346583519,1735114253507,-580.87,0.00011228,2]
[346583520,1735114253518,-155.193608,0.00011228,2]
[346583521,1735114253530,-503.60880248,0.00011228,2]
[346583522,1735114253541,-155.193608,0.00011228,2]
[346583523,1735114253553,-155.193608,0.00011228,2]
[346583524,1735114253564,-155.193608,0.00011228,2]
[346583525,1735114253576,-502.76721073,0.00011228,2]
[346583526,1735114253589,-500.0,0.00011228,2]
[346583527,1735114253600,-636.97004,0.00011228,2]
[346583528,1735114253610,-636.97004,0.00011228,2]
[346583529,1735114253619,-636.97004,0.00011228,2]
[346583530,1735114253628,-636.97004,0.00011228,2]
[346583531,1735114253638,-151.0,0.00011228,2]
[346583532,1735114253647,-151.0,0.00011228,2]
[346583533,1735114253656,-151.0,0.00011228,2]
[346583534,1735114253667,-151.0,0.00011228,2]
[346583535,1735114253676,-778.87296,0.00011228,2]
[346583536,1735114253685,-778.87296,0.00011228,2]
[346583537,1735114253695,-778.87296,0.00011228,2]
[346583538,1735114253704,-778.87296,0.00011228,2]
[346583539,1735114253714,-33146.83,0.00011228,2]
[346583540,1735114253723,-7815.83,0.00011228,2]
[346583541,1735114253732,-500.0,0.00011228,2]
[346583542,1735114253741,-151.0,0.00011228,2]
[346583543,1735114253924,-151.0,0.00011228,2]
[346583544,1735114253946,-151.0,0.00011228,2]
[346583545,1735114253961,-151.0,0.00011228,2]
[346583546,1735114253970,-1286.05,0.00011228,2]
[346583547,1735114253980,-151.0,0.00011228,2]
[346583548,1735114253990,-151.0,0.00011228,2]
[346583549,1735114253999,-503.79362735,0.00011228,2]
[346583550,1735114254010,-8844.65,0.00011228,2]
[346583551,1735114254020,-8844.65,0.00011228,2]
[346583552,1735114254030,-8844.65,0.00011228,2]
[346583553,1735114254039,-8844.65,0.00011228,2]
[346583554,1735114254049,-7639.36,0.00011228,2]
[346583555,1735114254059,-151.0,0.00011228,2]
[346583556,1735114254068,-151.0,0.00011228,2]
[346583557,1735114254077,-151.0,0.00011228,2]
[346583558,1735114254087,-269.568987,0.00011228,2]
[346583559,1735114254097,-213.145238,0.00011228,2]
[346583560,1735114254106,-213.145238,0.00011228,2]
[346583561,1735114254116,-1203.15,0.00011228,2]
[346583562,1735114254128,-500.0,0.00011228,2]
[346583563,1735114254137,-500.0,0.00011228,2]
[346583564,1735114254146,-218.212726,0.00011228,2]
[346583565,1735114254156,-218.212726,0.00011228,2]
[346583566,1735114254169,-218.212726,0.00011228,2]
[346583567,1735114254178,-218.212726,0.00011228,2]
[346583568,1735114254188,-500.0,0.00011228,2]
[346583569,1735114254198,-500.0,0.00011229,2]
[346583570,1735114254207,-500.0,0.00011229,2]
[346583571,1735114254216,-500.0,0.00011229,2]
[346583572,1735114254225,-500.0,0.00011229,2]
[346583573,1735114254235,-500.0,0.00011229,2]
[346583574,1735114254244,-500.0,0.00011229,2]
[346583575,1735114254253,-500.0,0.00011229,2]
[346583576,1735114254262,-287.45394331,0.00011229,2]
[346583577,1735114254271,-500.0,0.00011229,2]
[346583578,1735114254280,-500.0,0.00011229,2]
[346583579,1735114254290,-1200.648634,0.00011229,2]
[346583580,1735114254299,-1200.648634,0.00011229,2]
[346583581,1735114254308,-501.85536329,0.00011229,2]
[346583582,1735114254317,-500.0,0.00011229,2]
[346583583,1735114254327,-502.31581988,0.00011229,2]
[346583584,1735114254335,-502.07183632,0.00011229,2]
[346583585,1735114254345,-501.78865278,0.00011229,2]
[346583586,1735114254354,-554.6,0.00011229,2]
[346583587,1735114254363,-503.43070139,0.00011229,2]
[346583588,1735114254373,-151.0,0.00011229,2]
[346583589,1735114254382,-502.68230553,0.00011229,2]
[346583590,1735114254391,-501.47716561,0.00011229,2]
[346583591,1735114254400,-503.91833629,0.00011229,2]
[346583592,1735114254409,-500.0,0.00011229,2]
[346583593,1735114254419,-151.0,0.00011229,2]
[346583594,1735114254429,-500.0,0.00011229,2]
[346583595,1735114254438,-502.48337551,0.00011229,2]
[346583596,1735114254447,-500.0,0.00011229,2]
[346583597,1735114254456,-500.0,0.00011229,2]
[346583598,1735114254466,-500.0,0.00011229,2]
[346583599,1735114254475,-500.0,0.00011229,2]
[346583600,1735114254485,-151.0,0.00011229,2]
[346583601,1735114254494,-589.09,0.00011229,2]
[346583602,1735114254504,-217.30518613,0.00011229,2]
[346583603,1735114254513,-151.0,0.00011229,2]
[346583604,1735114254522,-500.0,0.00011229,2]
[346583605,1735114254531,-501.73257682,0.00011229,2]
[346583606,1735114254541,-500.0,0.00011229,2]
[346583607,1735114254550,-500.0,0.00011229,2]
[346583608,1735114254559,-500.0,0.00011229,2]
[346583609,1735114254568,-501.36604386,0.00011229,2]
[346583610,1735114254578,-500.0,0.00011229,2]
[346583611,1735114254587,-500.0,0.00011229,2]
[346583612,1735114254596,-500.0,0.00011229,2]
[346583613,1735114254606,-151.0,0.00011229,2]
[346583614,1735114254615,-501.65321996,0.00011229,2]
[346583615,1735114254626,-500.0,0.00011229,2]
[346583616,1735114254635,-151.0,0.00011229,2]
[346583617,1735114254644,-500.0,0.00011229,2]
[346583618,1735114254654,-501.00391146,0.00011229,2]
[346583619,1735114254663,-500.0,0.00011229,2]
[346583620,1735114254672,-502.71200867,0.00011229,2]
[346583621,1735114254681,-502.97086065,0.00011229,2]
[346583622,1735114254690,-500.0,0.00011229,2]